fUSD/lending_fUSD_20241121
["ID","MTS","AMOUNT","RATE_DAILY","PERIOD"]
[342966344,1732231844963,-297.73178064,0.00054423,30]
[342966345,1732231844974,-2000.0,0.00054427,2]
[342966346,1732231844984,-2000.0,0.00054427,2]
[342966347,1732231844994,-2000.0,0.00054427,2]
[342966348,1732231845003,-719.17543519,0.0005444,30]
[342966349,1732231845012,-297.73178064,0.0005444,30]
[342966350,1732231845022,-150.0,0.0005444,30]
[342966351,1732231845031,-150.0,0.00054455,30]
[342966352,1732231845040,-719.17543519,0.00054458,30]
[342966353,1732231845049,-297.73178064,0.00054458,30]
[342966354,1732231845058,-150.0,0.00054458,7]
[342966355,1732231845067,-150.0,0.00054466,30]
[342966356,1732231845076,-150.0,0.00054468,30]
[342966357,1732231845086,-719.17543519,0.00054475,30]
[342966358,1732231845097,-297.73178064,0.00054475,30]
[342966359,1732231845106,-150.0,0.0005449,7]
[342966360,1732231845117,-150.0,0.0005449,30]
[342966361,1732231845127,-719.17543519,0.00054492,30]
[342966362,1732231845136,-297.73178064,0.00054492,30]
[342966363,1732231845145,-150.0,0.00054492,30]
[342966364,1732231845155,-150.0,0.00054497,7]
[342966365,1732231845163,-151.112205,0.00054498,120]
[342966366,1732231845173,-150.0,0.000545,105]
[342966367,1732231845182,-150.0,0.00054506,7]
[342966368,1732231845192,-150.0,0.00054509,7]
[342966369,1732231845201,-719.17543519,0.0005451,30]
[342966370,1732231845210,-297.73178064,0.0005451,30]
[342966371,1732231845219,-150.0,0.0005451,30]
[342966372,1732231845227,-150.0,0.00054515,30]
[342966373,1732231845236,-150.0,0.00054518,30]
[342966374,1732231845245,-150.0,0.00054525,30]
[342966375,1732231845255,-719.17543519,0.00054527,30]
[342966376,1732231845263,-297.73178064,0.00054527,30]
[342966377,1732231845272,-719.17543519,0.00054544,30]
[342966378,1732231845281,-297.73178064,0.00054544,30]
[342966379,1732231845290,-150.0,0.00054544,30]
[342966380,1732231845299,-192.16938839,0.0005456,14]
[342966381,1732231845307,-150.0,0.0005456,30]
[342966382,1732231845316,-150.0,0.00054561,30]
[342966383,1732231845325,-719.17543519,0.00054562,30]
[342966384,1732231845334,-297.73178064,0.00054562,30]
[342966385,1732231845345,-150.0,0.0005457,30]
[342966386,1732231845354,-150.0,0.00054572,7]
[342966387,1732231845363,-150.0,0.00054575,7]
[342966388,1732231845373,-719.17543519,0.00054579,30]
[342966389,1732231845382,-297.73178064,0.00054579,30]
[342966390,1732231845391,-150.0,0.00054583,7]
[342966391,1732231845400,-1168.48,0.0005459,90]
[342966392,1732231845410,-1168.48,0.0005459,90]
[342966393,1732231845419,-150.0,0.00054595,30]
[342966394,1732231845429,-719.17543519,0.00054596,30]
[342966395,1732231845438,-297.73178064,0.00054596,30]
[342966396,1732231845447,-150.0,0.00054596,30]
[342966397,1732231845456,-5000.0,0.000546,120]
[342966398,1732231845466,-430.901786,0.000546,30]
[342966399,1732231845475,-500.0,0.00054602,120]
[342966400,1732231845485,-150.0,0.00054607,30]
[342966401,1732231845494,-719.17543519,0.00054613,30]
[342966402,1732231845503,-297.73178064,0.00054613,30]
[342966403,1732231845513,-150.0,0.00054622,30]
[342966404,1732231845523,-150.0,0.0005463,30]
[342966405,1732231845533,-719.17543519,0.00054631,30]
[342966406,1732231845544,-297.73178064,0.00054631,30]
[342966407,1732231845553,-150.0,0.00054633,7]
[342966408,1732231845563,-500.0,0.00054643,120]
[342966409,1732231845572,-1000.0,0.00054643,120]
[342966410,1732231845582,-150.0,0.00054644,7]
[342966411,1732231845591,-719.17543519,0.00054648,30]
[342966412,1732231845604,-297.73178064,0.00054648,30]
[342966413,1732231845613,-150.0,0.00054648,30]
[342966414,1732231845623,-150.0,0.00054654,30]
[342966415,1732231845632,-150.0,0.00054656,7]
[342966416,1732231845642,-2822.0183881,0.00054663,2]
[342966417,1732231845651,-564.4036776,0.00054663,2]
[342966418,1732231845661,-150.0,0.00054665,30]
[342966419,1732231845672,-719.17543519,0.00054665,30]
[342966420,1732231845681,-297.73178064,0.00054665,30]
[342966421,1732231845691,-150.0,0.00054674,30]
[342966422,1732231845700,-719.17543519,0.00054683,30]
[342966423,1732231845709,-297.73178064,0.00054683,30]
[342966424,1732231845718,-274.0,0.0005469,30]
[342966425,1732231845727,-274.0,0.0005469,30]
[342966426,1732231845737,-274.0,0.0005469,30]
[342966427,1732231845748,-49083.21430894,0.000547,30]
[342966428,1732231845759,-1054.0,0.000547,30]
[342966429,1732231845770,-2110.0,0.000547,30]
[342966430,1732231845780,-719.17543519,0.000547,30]
[342966431,1732231845790,-297.73178064,0.000547,30]
[342966432,1732231845800,-258.34190378,0.000547,30]
[342966433,1732231845809,-299.64795558,0.000547,30]
[342966434,1732231845818,-210.9288853,0.000547,30]
[342966435,1732231845828,-223.53700285,0.000547,30]
[342966436,1732231845836,-285.0337378,0.000547,30]
[342966437,1732231845847,-256.55197529,0.000547,30]
[342966438,1732231845856,-166.06657289,0.000547,30]
[342966439,1732231845869,-2822.0183881,0.00054756,2]
[342966440,1732231845880,-564.4036776,0.00054756,2]
[342966441,1732231845890,-2822.0183881,0.00054757,2]
[342966442,1732231845899,-564.4036776,0.00054757,2]
[342966443,1732231845909,-726.75,0.0005478,2]
[342966444,1732231845919,-500.0,0.00054794,120]
[342966445,1732231845928,-500.0,0.00054794,120]
[342966446,1732231845937,-500.0,0.00054794,120]
[342966447,1732231845946,-2446.95,0.00054794,120]
[342966448,1732231845956,-483.20470996,0.00054794,120]
[342966449,1732231845965,-500.0,0.00054794,120]
[342966450,1732231845974,-500.0,0.00054794,120]
[342966451,1732231845983,-500.0,0.00054794,120]
[342966452,1732231845993,-500.0,0.00054794,120]
[342966453,1732231846002,-500.0,0.00054794,120]
[342966454,1732231846011,-500.0,0.00054794,120]
[342966455,1732231846020,-500.0,0.00054794,120]
[342966456,1732231846030,-692.24059566,0.00054794,120]
[342966457,1732231846040,-500.0,0.00054794,120]
[342966458,1732231846050,-5214.57,0.00054794,120]
[342966459,1732231846059,-5214.57,0.00054794,120]
[342966460,1732231846068,-5214.57,0.00054794,120]
[342966461,1732231846077,-5214.57,0.00054794,120]
[342966462,1732231846086,-5214.57,0.00054794,120]
[342966463,1732231846097,-5214.57,0.00054794,120]
[342966464,1732231846106,-5214.57,0.00054794,120]
[342966465,1732231846115,-5214.57,0.00054794,120]
[342966475,1732231846124,-5214.57,0.00054794,120]
[342966476,1732231846260,-5214.57,0.00054794,120]
[342966477,1732231846270,-5214.57,0.00054794,120]
[342966478,1732231846280,-5214.57,0.00054794,120]
[342966479,1732231846289,-5214.57,0.00054794,120]
[342966480,1732231846298,-5214.57,0.00054794,120]
[342966481,1732231846308,-5214.57,0.00054794,120]
[342966482,1732231846317,-5214.57,0.00054794,120]
[342966483,1732231846327,-5214.57,0.00054794,120]
[342966484,1732231846337,-5214.57,0.00054794,120]
[342966485,1732231846348,-5214.57,0.00054794,120]
[342966486,1732231846357,-5214.57,0.00054794,120]
[342966487,1732231846367,-5214.57,0.00054794,120]
[342966488,1732231846377,-5214.57,0.00054794,120]
[342966489,1732231846386,-5214.57,0.00054794,120]
[342966490,1732231846395,-5214.75035087,0.00054794,120]
[342966491,1732231846404,-350.0,0.00054794,120]
[342966492,1732231846415,-223.21923159,0.00054794,120]
[342966493,1732231846425,-151.0,0.00054794,120]
[342966494,1732231846435,-151.0,0.00054794,120]
[342966495,1732231846444,-1041.14,0.00054794,120]
[342966496,1732231846455,-1041.14,0.00054794,120]
[342966497,1732231846465,-1041.14,0.00054794,120]
[342966498,1732231846474,-1041.14,0.00054794,120]
[342966499,1732231846484,-1041.14,0.00054794,120]
[342966500,1732231846494,-1041.14,0.00054794,120]
[342966501,1732231846504,-1041.14,0.00054794,120]
[342966502,1732231846514,-1041.14,0.00054794,120]
[342966503,1732231846525,-1041.14,0.00054794,120]
[342966504,1732231846535,-1041.14,0.00054794,120]
[342966505,1732231846545,-1041.14,0.00054794,120]
[342966506,1732231846556,-1041.14,0.00054794,120]
[342966507,1732231846566,-1041.14,0.00054794,120]
[342966508,1732231846576,-1041.14,0.00054794,120]
[342966509,1732231846586,-1041.14,0.00054794,120]
[342966510,1732231846596,-1041.14,0.00054794,120]
[342966511,1732231846606,-1041.14,0.00054794,120]
[342966512,1732231846615,-1041.14,0.00054794,120]
[342966513,1732231846624,-1041.14,0.00054794,120]
[342966514,1732231846634,-1041.14,0.00054794,120]
[342966515,1732231846643,-1041.14,0.00054794,120]
[342966516,1732231846653,-1041.14,0.00054794,120]
[342966517,1732231846662,-1041.14,0.00054794,120]
[342966518,1732231846671,-1041.22777307,0.00054794,120]
[342966519,1732231846681,-700.0,0.00054795,39]
[342966520,1732231846691,-813.0,0.00054795,120]
[342966521,1732231846700,-839.0,0.00054795,120]
[342966522,1732231846710,-500.0,0.00054795,120]
[342966523,1732231846721,-898.0,0.00054795,120]
[342966524,1732231846730,-742.0,0.00054795,120]
[342966525,1732231846739,-534.0,0.00054795,120]
[342966526,1732231846749,-734.0,0.00054795,120]
[342966527,1732231846759,-830.0,0.00054795,30]
[342966528,1732231846768,-1000.0,0.00054795,30]
[342966529,1732231846777,-150.0,0.00054795,120]
[342966530,1732231846787,-500.0,0.00054795,120]
[342966531,1732231846796,-500.0,0.00054795,120]
[342966532,1732231846805,-992.80374011,0.00054795,120]
[342966533,1732231846815,-150.0,0.00054795,2]
[342966534,1732231846824,-500.0,0.00054795,120]
[342966535,1732231846833,-150.0,0.00054795,2]
[342966536,1732231846843,-1556.0,0.00054795,120]
[342966537,1732231846852,-500.0,0.00054795,120]
[342966538,1732231846864,-150.0,0.00054795,2]
[342966539,1732231846874,-243.48724484,0.00054795,120]
[342966540,1732231846884,-500.0,0.00054795,120]
[342966541,1732231846894,-500.0,0.00054795,120]
[342966542,1732231846903,-150.0,0.00054795,120]
[342966543,1732231846915,-500.0,0.00054795,120]
[342966544,1732231846924,-157.112205,0.00054798,120]
[342966545,1732231846936,-1002.76,0.000548,120]
[342966546,1732231846945,-302.86802791,0.000548,2]
[342966547,1732231846955,-150.0,0.00054822,120]
[342966548,1732231846965,-500.0,0.00054822,120]
[342966549,1732231846974,-778.42317297,0.00054822,120]
[342966550,1732231846984,-500.0,0.00054822,120]
[342966551,1732231846993,-1556.0,0.00054822,120]
[342966552,1732231847003,-976.29448145,0.00054822,120]
[342966553,1732231847013,-975.57245113,0.00054822,120]
[342966554,1732231847023,-500.0,0.00054822,120]
[342966555,1732231847032,-264.92031465,0.00054822,120]
[342966556,1732231847042,-500.0,0.00054822,120]
[342966557,1732231847051,-150.0,0.0005485,120]
[342966558,1732231847061,-500.0,0.0005485,120]
[342966559,1732231847070,-500.0,0.0005485,120]
[342966560,1732231847079,-1556.0,0.0005485,120]
[342966561,1732231847088,-500.0,0.0005485,120]
[342966562,1732231847101,-500.0,0.0005485,120]
[342966563,1732231847110,-150.0,0.00054855,120]
[342966564,1732231847119,-1168.48,0.00054863,120]
[342966565,1732231847128,-1168.48,0.00054863,120]
[342966566,1732231847138,-432.14,0.00054876,120]
[342966567,1732231847147,-220.99167431,0.00054877,120]
[342966568,1732231847156,-500.0,0.00054877,120]
[342966569,1732231847166,-500.0,0.00054877,120]
[342966570,1732231847175,-1556.0,0.00054877,120]
[342966571,1732231847185,-500.0,0.00054877,120]
[342966572,1732231847195,-500.0,0.00054877,120]
[342966573,1732231847205,-8781.39796133,0.0005488,120]
[342966574,1732231847214,-6120.16198809,0.000549,120]
[342966575,1732231847223,-10000.0,0.000549,120]
[342966576,1732231847233,-10000.0,0.000549,120]
[342966577,1732231847242,-15735.11738681,0.000549,120]
[342966578,1732231847252,-157.1097217,0.000549,120]
[342966579,1732231847261,-157.1097217,0.000549,120]
[342966580,1732231847271,-157.1097217,0.000549,120]
[342966581,1732231847280,-157.1097217,0.000549,120]
[342966582,1732231847289,-157.1097217,0.000549,120]
[342966583,1732231847299,-157.1097217,0.000549,120]
[342966584,1732231847308,-157.1097217,0.000549,120]
[342966585,1732231847318,-157.1097217,0.000549,120]
[342966586,1732231847327,-157.1097217,0.000549,120]
[342966587,1732231847337,-157.1097217,0.000549,120]
[342966588,1732231847348,-157.1097217,0.000549,120]
[342966589,1732231847357,-157.1097217,0.000549,120]
[342966590,1732231847367,-157.1097217,0.000549,120]
[342966591,1732231847376,-157.1097217,0.000549,120]
[342966592,1732231847386,-157.1097217,0.000549,120]
[342966593,1732231847395,-157.1,0.000549,120]
[342966594,1732231847406,-1100.0,0.000549,20]
[342966595,1732231847416,-500.0,0.00054905,120]
[342966596,1732231847426,-500.0,0.00054905,120]
[342966597,1732231847436,-1556.0,0.00054905,120]
[342966598,1732231847447,-500.0,0.00054905,120]
[342966599,1732231847456,-500.0,0.00054905,120]
[342966600,1732231847466,-500.0,0.00054917,120]
[342966601,1732231847475,-500.0,0.00054917,120]
[342966602,1732231847485,-1000.0,0.00054917,120]
[342966603,1732231847495,-150.0,0.00054927,120]
[342966604,1732231847505,-556.84289359,0.00054932,120]
[342966605,1732231847514,-500.0,0.00054932,120]
[342966606,1732231847523,-1556.0,0.00054932,120]
[342966607,1732231847533,-500.0,0.00054932,120]
[342966608,1732231847542,-150.0,0.0005494,120]
[342966609,1732231847552,-500.0,0.00054959,120]
[342966610,1732231847562,-1556.0,0.00054959,120]
[342966611,1732231847571,-584.15580741,0.00054959,120]
[342966612,1732231847580,-595.8248026,0.00054962,2]
[342966613,1732231847590,-844.46916406,0.00054987,120]
[342966614,1732231847600,-1556.0,0.00054987,120]
[342966615,1732231847610,-2698.0,0.00054989,78]
[342966616,1732231847620,-1000.0,0.00054999,120]
[342966617,1732231847629,-50000.0,0.00055,45]
[342966618,1732231847639,-50000.0,0.00055,57]
[342966619,1732231847648,-12543.03435487,0.00055,5]
[342966620,1732231847658,-2148.8865108,0.00055,120]
[342966621,1732231847667,-83590.0,0.00055,15]
[342966622,1732231847678,-38940.93886329,0.00055,30]
[342966623,1732231847687,-209.72525755,0.00055,120]
[342966624,1732231847697,-10000.0,0.00055,120]
[342966625,1732231847707,-20000.0,0.00055,120]
[342966626,1732231847717,-1000.0,0.00055,2]
[342966627,1732231847726,-1399729.79163265,0.00055,120]
[342966628,1732231847736,-11000.0,0.00055,120]
[342966629,1732231847746,-10000.0,0.00055,120]
[342966630,1732231847755,-5216.41118262,0.00055,120]
[342966631,1732231847764,-29954.3402139,0.00055,120]
[342966632,1732231847774,-900.0,0.00055,56]
[342966633,1732231847783,-20354.13619241,0.00055,30]
[342966634,1732231847793,-816.999998,0.00055,120]
[342966635,1732231847802,-1036.59554756,0.00055,120]
[342966636,1732231847811,-1000.0,0.00055,120]
[342966637,1732231847820,-381.77771521,0.00055,30]
[342966638,1732231847830,-150.0,0.00055,106]
[342966639,1732231847839,-151.0,0.00055,120]
[342966640,1732231847849,-151.0,0.00055,110]
[342966641,1732231847861,-389.539599,0.00055,120]
[342966642,1732231847873,-389.539599,0.00055,120]
[342966643,1732231847882,-151.0,0.00055,120]
[342966644,1732231847892,-334.689648,0.00055,120]
[342966645,1732231847901,-334.689648,0.00055,120]
[342966646,1732231847914,-151.0,0.00055,120]
[342966647,1732231847923,-151.0,0.00055,120]
[342966648,1732231847933,-406.022737,0.00055,120]
[342966649,1732231847945,-406.022737,0.00055,120]
[342966650,1732231847955,-406.022737,0.00055,120]
[342966651,1732231847966,-406.022737,0.00055,120]
[342966652,1732231847975,-400.1842112,0.00055,2]
[342966653,1732231847985,-240.11052672,0.00055,2]
[342966654,1732231847995,-151.0,0.00055,120]
[342966655,1732231848005,-151.0,0.00055,120]
[342966656,1732231848015,-151.0,0.00055,120]
[342966657,1732231848025,-151.0,0.00055,120]
[342966658,1732231848035,-1556.0,0.00055014,120]
[342966659,1732231848044,-1556.0,0.00055042,120]
[342966660,1732231848053,-2446.95,0.00055068,120]
[342966661,1732231848063,-1556.0,0.00055069,120]
[342966662,1732231848073,-239.605,0.0005509,120]
[342966663,1732231848083,-1556.0,0.00055096,120]
[342966664,1732231848094,-1556.0,0.00055124,120]
[342966665,1732231848104,-1168.48,0.00055137,120]
[342966666,1732231848113,-1168.48,0.00055137,120]
[342966667,1732231848122,-1556.0,0.00055151,120]
[342966668,1732231848132,-1556.0,0.00055179,120]
[342966669,1732231848142,-19863.51,0.0005519,120]
[342966670,1732231848152,-500.0,0.00055191,120]
[342966671,1732231848161,-500.0,0.00055191,120]
[342966672,1732231848171,-1000.0,0.00055191,120]
[342966673,1732231848181,-150.112204,0.00055198,120]
[342966674,1732231848190,-1556.0,0.00055206,120]
[342966675,1732231848200,-1556.0,0.00055233,120]
[342966676,1732231848209,-150.0,0.0005526,120]
[342966677,1732231848220,-1556.0,0.00055261,120]
[342966678,1732231848230,-1556.0,0.00055288,120]
[342966679,1732231848241,-150.0,0.000553,40]
[342966680,1732231848251,-1568.49940415,0.00055316,120]
[342966681,1732231848260,-5543.0,0.00055334,120]
[342966682,1732231848270,-2446.95,0.00055342,120]
[342966683,1732231848280,-150.0,0.00055373,120]
[342966684,1732231848290,-176.89121322,0.00055399,28]
[342966685,1732231848300,-873.29651406,0.000554,30]
[342966686,1732231848310,-1168.48,0.0005541,120]
[342966687,1732231848319,-1168.48,0.0005541,120]
[342966688,1732231848329,-150.0,0.00055411,120]
[342966689,1732231848339,-500.0,0.00055465,120]
[342966690,1732231848351,-500.0,0.00055465,120]
[342966691,1732231848360,-1000.0,0.00055465,120]
[342966692,1732231848370,-157.112205,0.00055498,120]
[342966693,1732231848380,-20000.0,0.000555,120]
[342966694,1732231848391,-208.0,0.000555,45]
[342966695,1732231848400,-150.0,0.000555,107]
[342966696,1732231848410,-150.0,0.00055549,120]
[342966697,1732231848419,-150.0,0.00055568,120]
[342966698,1732231848428,-1000.0,0.00055615,120]
[342966699,1732231848439,-2446.95,0.00055616,120]
[342966700,1732231848448,-1168.48,0.00055683,120]
[342966701,1732231848458,-1168.48,0.00055683,120]
[342966702,1732231848468,-3000.0,0.000557,90]
[342966703,1732231848478,-500.0,0.00055739,120]
[342966704,1732231848487,-500.0,0.00055739,120]
[342966705,1732231848497,-1000.0,0.00055739,120]
[342966706,1732231848506,-1006.64,0.0005576,120]
[342966707,1732231848517,-38891.1998785,0.0005578,120]
[342966708,1732231848526,-2446.95,0.0005589,120]
[342966709,1732231848536,-1168.48,0.00055956,120]
[342966710,1732231848546,-1168.48,0.00055956,120]
[342966711,1732231848556,-278.48,0.00055971,120]
[342966712,1732231848565,-1000.0,0.00055999,120]
[342966713,1732231848575,-50000.0,0.00056,46]
[342966714,1732231848585,-50000.0,0.00056,58]
[342966715,1732231848597,-580.0,0.00056,14]
[342966716,1732231848607,-900.0,0.00056,57]
[342966717,1732231848617,-750.0,0.00056,120]
[342966718,1732231848627,-20000.0,0.00056,120]
[342966719,1732231848637,-10000.0,0.00056,120]
[342966720,1732231848646,-50000.0,0.00056,120]
[342966721,1732231848655,-550.0,0.00056,120]
[342966722,1732231848667,-150.0,0.00056,108]
[342966723,1732231848680,-151.0,0.00056,120]
[342966724,1732231848690,-151.0,0.00056,110]
[342966725,1732231848700,-389.539599,0.00056,120]
[342966726,1732231848710,-389.539599,0.00056,120]
[342966727,1732231848720,-151.0,0.00056,120]
[342966728,1732231848729,-334.689648,0.00056,120]
[342966729,1732231848739,-334.689648,0.00056,120]
[342966730,1732231848748,-151.0,0.00056,120]
[342966731,1732231848758,-406.022737,0.00056,120]
[342966732,1732231848769,-406.022737,0.00056,120]
[342966733,1732231848778,-151.0,0.00056,120]
[342966734,1732231848789,-151.0,0.00056,120]
[342966735,1732231848800,-500.0,0.00056013,120]
[342966736,1732231848812,-500.0,0.00056013,120]
[342966737,1732231848823,-1000.0,0.00056013,120]
[342966738,1732231848832,-161.35,0.00056127,2]
[342966739,1732231848844,-2446.95,0.00056164,120]
[342966740,1732231848854,-157.112205,0.00056198,120]
[342966741,1732231848866,-1168.48,0.0005623,120]
[342966742,1732231848875,-1168.48,0.0005623,120]
[342966743,1732231848885,-500.0,0.00056287,120]
[342966744,1732231848894,-500.0,0.00056287,120]
[342966745,1732231848906,-1000.0,0.00056287,120]
[342966746,1732231848916,-1000.0,0.00056374,120]
[342966747,1732231848926,-2446.95,0.00056438,120]
[342966748,1732231848936,-150.112204,0.00056498,120]
[342966749,1732231848948,-20000.0,0.000565,120]
[342966750,1732231848957,-150.0,0.000565,109]
[342966751,1732231848967,-1168.48,0.00056503,120]
[342966752,1732231848977,-1168.48,0.00056503,120]
[342966753,1732231848986,-500.0,0.00056561,120]
[342966754,1732231848995,-500.0,0.00056561,120]
[342966755,1732231849005,-1000.0,0.00056561,120]
[342966756,1732231849014,-250.0,0.000566,30]
[342966757,1732231849023,-176.89121322,0.00056649,28]
[342966758,1732231849034,-160.07368448,0.00056649,2]
[342966759,1732231849043,-4631.0,0.00056667,117]
[342966760,1732231849053,-500.0,0.00056674,120]
[342966761,1732231849062,-150.0,0.00056689,120]
[342966762,1732231849071,-150.0,0.00056711,120]
[342966763,1732231849081,-2446.95,0.00056712,120]
[342966764,1732231849090,-500.0,0.000568,120]
[342966765,1732231849100,-152.52,0.000568,57]
[342966766,1732231849109,-152.52,0.000568,57]
[342966767,1732231849118,-500.0,0.00056835,120]
[342966768,1732231849128,-500.0,0.00056835,120]
[342966769,1732231849137,-219.79901148,0.00056835,120]
[342966770,1732231849147,-163.79,0.00056841,120]
[342966771,1732231849156,-1000.0,0.00056849,30]
[342966772,1732231849165,-15952.92646366,0.0005689,120]
[342966773,1732231849176,-2446.95,0.00056986,120]
[342966774,1732231849185,-1000.0,0.00056986,30]
[342966775,1732231849194,-1000.0,0.00056999,120]
[342966776,1732231849203,-50000.0,0.00057,47]
[342966777,1732231849213,-50000.0,0.00057,57]
[342966778,1732231849222,-10067.26592998,0.00057,120]
[342966779,1732231849232,-900.0,0.00057,58]
[342966780,1732231849242,-20000.0,0.00057,120]
[342966781,1732231849251,-50000.0,0.00057,120]
[342966782,1732231849260,-6331.22222991,0.00057,120]
[342966783,1732231849270,-6286.85857665,0.00057,90]
[342966784,1732231849279,-726.75,0.00057043,2]
[342966785,1732231849287,-500.0,0.00057109,120]
[342966786,1732231849297,-500.0,0.00057109,120]
[342966787,1732231849306,-1000.0,0.00057123,30]
[342966788,1732231849316,-150.0,0.00057136,120]
[342966789,1732231849326,-150.112204,0.00057198,120]
[342966790,1732231849336,-500.0,0.00057222,120]
[342966791,1732231849347,-2446.95,0.0005726,120]
[342966792,1732231849358,-1000.0,0.0005726,30]
[342966793,1732231849368,-500.0,0.00057383,120]
[342966794,1732231849377,-500.0,0.00057383,120]
[342966795,1732231849387,-1000.0,0.00057397,30]
[342966796,1732231849398,-150.0,0.00057462,120]
[342966797,1732231849408,-157.112205,0.00057498,120]
[342966798,1732231849418,-20000.0,0.000575,120]
[342966799,1732231849429,-2000.0,0.000575,120]
[342966800,1732231849439,-150.0,0.00057519,120]
[342966801,1732231849449,-2446.95,0.00057534,120]
[342966802,1732231849459,-1000.0,0.00057534,30]
[342966803,1732231849469,-500.0,0.00057534,120]
[342966804,1732231849479,-150.0,0.00057606,120]
[342966805,1732231849489,-150.0,0.00057607,120]
[342966806,1732231849499,-150.0,0.00057621,120]
[342966807,1732231849626,-500.0,0.00057656,120]
[342966808,1732231849635,-500.0,0.00057656,120]
[342966809,1732231849645,-10000.0,0.0005768,30]
[342966810,1732231849654,-150.0,0.00057762,120]
[342966811,1732231849663,-500.0,0.0005777,120]
[342966812,1732231849673,-500.0,0.000578,120]
[342966813,1732231849683,-38853.0,0.000578,120]
[342966814,1732231849692,-151.0,0.000578,120]
[342966815,1732231849701,-294.081962,0.000578,110]
[342966816,1732231849710,-389.539599,0.000578,120]
[342966817,1732231849719,-389.539599,0.000578,120]
[342966818,1732231849728,-151.0,0.000578,120]
[342966819,1732231849738,-334.689648,0.000578,120]
[342966820,1732231849748,-334.689648,0.000578,120]
[342966821,1732231849758,-2446.95,0.00057808,120]
[342966822,1732231849768,-150.0,0.00057892,120]
[342966823,1732231849777,-176.89121322,0.00057899,28]
[342966824,1732231849787,-500.0,0.0005793,120]
[342966825,1732231849795,-500.0,0.0005793,120]
[342966826,1732231849804,-595.8248026,0.0005796,2]
[342966827,1732231849813,-1000.0,0.00057999,120]
[342966828,1732231849823,-50000.0,0.00058,48]
[342966829,1732231849832,-50000.0,0.00058,58]
[342966830,1732231849841,-29794.23180835,0.00058,120]
[342966831,1732231849850,-236.63357149,0.00058,120]
[342966832,1732231849860,-900.0,0.00058,59]
[342966833,1732231849871,-650.0,0.00058,120]
[342966834,1732231849880,-50013.21,0.00058,120]
[342966835,1732231849890,-6875.0,0.00058,120]
[342966836,1732231849899,-400.0,0.00058,120]
[342966837,1732231849910,-157.02,0.00058,120]
[342966838,1732231849920,-8000.0,0.00058,120]
[342966839,1732231849929,-39016.26612559,0.00058,120]
[342966840,1732231849939,-50000.0,0.00058,120]
[342966841,1732231849949,-50000.0,0.00058,120]
[342966842,1732231849961,-31552.87480339,0.00058,120]
[342966843,1732231849970,-20000.000001,0.00058,30]
[342966844,1732231849979,-151.0,0.00058,120]
[342966845,1732231849988,-406.022737,0.00058,120]
[342966846,1732231849997,-406.022737,0.00058,120]
[342966847,1732231850008,-51713.19298189,0.00058,120]
[342966848,1732231850021,-151.0,0.00058,120]
[342966849,1732231850031,-215.719224,0.00058,120]
[342966850,1732231850041,-2446.95,0.00058082,120]
[342966851,1732231850053,-157.112205,0.00058198,120]
[342966852,1732231850062,-500.0,0.00058204,120]